bitfinex/quotes_ETHUSD_20220731
["timestamp","ask_amount","ask_price","bid_price","bid_amount"]
[1659277595404,5.15713562,1709.5,1709.0,0.30059446]
[1659277595516,3.0,1709.4,1709.0,0.30059446]
[1659277596156,3.3,1709.4,1709.0,0.30059446]
[1659277596557,3.3,1709.4,1709.1,0.08400354]
[1659277597352,6.19804672,1709.4,1709.1,0.08400354]
[1659277598322,0.2,1709.3,1709.1,0.08400354]
[1659277598527,3.19804672,1709.2,1709.1,0.08400354]
[1659277598742,6.55080471,1709.2,1709.1,0.08400354]
[1659277600256,6.75080471,1709.2,1709.1,0.08400354]
[1659277601259,6.49804672,1709.2,1709.1,0.08400354]
[1659277603752,3.6,1709.2,1709.1,0.08400354]
[1659277603952,4.95225173,1709.5,1709.1,0.38095906]
[1659277603953,0.00292638,1709.5,1709.1,0.38095906]
[1659277605160,0.05,1709.7,1709.1,0.38095906]
[1659277605420,9.1765,1709.8,1709.1,0.38095906]
[1659277605421,6.2274,1709.8,1709.4,0.2]
[1659277605558,0.35,1710.0,1709.5,0.33314163]
[1659277605901,2.90097259,1709.9,1709.5,0.33314163]
[1659277606104,2.89804672,1709.8,1709.2,0.05]
[1659277606264,2.89804672,1709.8,1709.3,0.29471435]
[1659277606458,2.89804672,1709.9,1709.3,0.33314613]
[1659277607540,3.49804672,1709.9,1709.3,0.33314613]
[1659277607744,3.0,1709.8,1709.3,0.33314613]
[1659277608641,0.3,1709.8,1709.3,0.33314613]
[1659277608802,2.89804672,1709.9,1709.3,0.33314613]
[1659277609002,0.18509344,1709.9,1709.3,0.33314613]
[1659277611081,0.23785143,1709.9,1709.3,0.33314613]
[1659277614967,0.18509344,1709.9,1709.3,0.33314613]
[1659277615199,0.05,1710.0,1709.4,1.437]
[1659277615416,14.3945,1710.1,1709.4,1.437]
[1659277615417,14.3945,1710.1,1709.5,0.2]
[1659277615569,16.05363491,1710.1,1709.5,0.49471435]
[1659277615906,0.00277522,1710.0,1709.5,0.49471435]
[1659277616496,16.4036349,1710.1,1709.5,0.29471435]
[1659277617114,3.0,1710.0,1709.5,0.29471435]
[1659277617405,3.3,1710.0,1709.6,0.2]
[1659277617781,3.3,1710.0,1709.5,0.29471435]
[1659277618166,3.3,1710.0,1709.6,0.2]
[1659277620716,3.3,1710.0,1709.6,0.29330159]
[1659277624938,2.89804672,1709.9,1709.6,0.09330159]
[1659277625140,3.0,1709.8,1709.6,0.09330159]
[1659277625305,5.89804672,1709.8,1709.6,0.09330159]
[1659277625742,6.19804672,1709.8,1709.6,0.09330159]
[1659277626040,2.89804672,1709.7,1709.6,0.09330159]
[1659277626943,6.19804672,1709.8,1709.6,0.09330159]
[1659277627837,0.7391,1709.7,1709.6,0.09330159]
[1659277628146,0.3,1709.7,1709.6,0.09330159]
[1659277628302,6.33714672,1709.8,1709.6,0.09330159]
[1659277628303,6.63714672,1709.8,1709.6,0.09330159]
[1659277629043,9.58654672,1709.8,1709.6,0.09330159]
[1659277630003,9.58654672,1709.8,1709.6,0.08991063]
[1659277630614,9.88247908,1709.8,1709.6,0.08991063]
[1659277631714,9.88247908,1709.8,1709.6,0.06413228]
[1659277632507,3.19804672,1709.7,1709.6,0.06413228]
[1659277632825,3.19804672,1709.7,1709.6,0.0931132]
[1659277632826,6.19804672,1709.7,1709.6,0.0931132]
[1659277633397,3.3,1709.7,1709.6,0.0931132]
[1659277633643,0.00343034,1710.0,1709.6,0.0931132]
[1659277634346,0.00343034,1710.0,1709.6,0.38782755]
[1659277634544,14.1119277,1710.1,1709.6,0.38782755]
[1659277634744,3.0,1710.0,1709.6,0.38782755]
[1659277634952,3.3,1710.0,1709.6,0.38782755]
[1659277635246,1.05,1710.2,1709.6,3.28587427]
[1659277635554,3.90085258,1710.2,1709.6,0.38782755]
[1659277635700,3.90085258,1710.2,1709.6,0.42032184]
[1659277635900,3.95085257,1710.2,1709.6,0.42032184]
[1659277636145,3.94804671,1710.2,1709.6,0.42032184]
[1659277636314,3.6,1710.1,1709.6,0.42032184]
[1659277640270,3.0,1710.0,1709.6,0.42032184]
[1659277640631,0.3,1710.1,1709.6,0.42032184]
[1659277643848,0.5,1710.1,1709.6,0.12560749]
[1659277644147,0.5,1710.0,1709.6,0.0931132]
[1659277644372,1.4624,1709.9,1709.6,0.0931132]
[1659277644574,1.7624,1709.9,1709.6,0.0931132]
[1659277645415,0.7391,1709.9,1709.6,0.0931132]
[1659277645714,7.13704672,1710.0,1709.6,0.0931132]
[1659277646072,6.69804672,1710.0,1709.6,0.0931132]
[1659277646478,2.89804672,1709.9,1709.6,0.0931132]
[1659277646711,3.3,1709.8,1709.6,0.0931132]
[1659277648725,6.19804672,1709.8,1709.6,0.0931132]
[1659277649216,6.39804672,1709.8,1709.6,0.0931132]
[1659277649431,6.19804672,1709.8,1709.6,0.0931132]
[1659277653565,6.09804672,1709.8,1709.6,0.0931132]
[1659277656573,0.3,1709.7,1709.6,0.0931132]
[1659277661987,3.49953981,1709.8,1709.6,0.0931132]
[1659277663157,3.49953981,1709.8,1709.6,0.0431132]
[1659277664579,3.49953981,1709.8,1709.6,0.09168107]
[1659277664957,3.2,1709.8,1709.6,0.09168107]
[1659277665710,2.82205799,1709.9,1709.6,0.09168107]
[1659277665711,0.05275799,1709.9,1709.6,0.09168107]
[1659277665860,7.6581,1710.0,1709.6,0.38639542]
[1659277666861,2.7793,1710.1,1709.6,0.67872542]
[1659277667098,3.2963505,1710.0,1709.6,0.67872542]
[1659277667448,3.2963505,1710.0,1709.6,0.38639542]
[1659277669111,0.10977001,1709.9,1709.6,0.38639542]
[1659277686740,2.9963505,1710.0,1709.6,0.38639542]
[1659277688138,3.2963505,1710.0,1709.6,0.38639542]
[1659277693025,0.05,1710.2,1709.7,3.76591936]
[1659277693171,5.9028,1710.8,1710.0,0.2]
[1659277693387,5.9028,1710.8,1710.5,1.228]
[1659277693586,3.1085,1710.8,1710.5,1.228]
[1659277693789,11.2218,1710.9,1710.5,1.228]
[1659277694088,11.2218,1710.9,1710.2,4.4596]
[1659277694283,0.2,1710.7,1710.1,0.05]
[1659277694482,0.2,1710.7,1709.9,7.9954]
[1659277694483,2.89804672,1710.6,1709.9,11.212]
[1659277694683,0.4389,1710.5,1709.9,11.162]
[1659277695282,0.4389,1710.5,1709.9,11.4919722]
[1659277695482,3.7389,1710.5,1709.9,11.4919722]
[1659277696224,3.3,1710.5,1709.9,11.4919722]
[1659277697141,3.30286261,1710.5,1709.9,11.4919722]
[1659277697497,3.30286261,1710.5,1709.9,14.9919722]
[1659277697702,0.7389,1710.5,1710.2,1.228]
[1659277698421,0.4389,1710.6,1710.2,1.228]
[1659277698645,3.74199553,1710.7,1710.2,1.228]
[1659277698798,6.69280024,1710.7,1710.2,1.228]
[1659277699238,6.98628662,1710.7,1710.2,1.228]
[1659277700543,4.0882399,1710.7,1710.2,1.228]
[1659277700727,3.6493399,1710.7,1710.2,1.228]
[1659277702449,3.33565677,1710.8,1710.3,3.79471435]
[1659277702631,3.33565677,1710.8,1710.7,1.243]
[1659277702802,0.00325677,1710.8,1710.7,1.243]
[1659277703437,0.4388,1711.1,1710.5,1.52271435]
[1659277703643,0.4388,1711.1,1710.3,11.2266]
[1659277703644,4.08159928,1711.0,1710.3,11.2266]
[1659277703823,4.08159928,1711.0,1710.3,11.1766]
[1659277703824,3.3,1710.9,1710.3,11.1766]
[1659277704043,3.33684672,1710.8,1710.2,0.08906539]
[1659277704355,3.3,1710.7,1710.2,0.08906539]
[1659277704717,6.19804672,1710.7,1710.2,0.08906539]
[1659277704918,3.19804672,1710.6,1710.2,0.08906539]
[1659277705118,3.0,1710.5,1710.2,0.08906539]
[1659277706757,0.3,1710.6,1710.2,0.08906539]
[1659277707158,3.79456255,1710.7,1710.2,0.08906539]
[1659277707466,3.79456255,1710.7,1710.3,0.2]
[1659277707623,0.35566255,1710.7,1710.3,1.443]
[1659277707824,0.35275799,1710.7,1710.3,1.443]
[1659277709431,0.35275799,1710.7,1710.2,0.08906539]
[1659277710974,0.35275799,1710.7,1710.1,0.32829349]
[1659277711766,0.35275799,1710.7,1710.2,1.243]
[1659277713578,0.35275799,1710.7,1710.1,0.32829349]
[1659277715346,0.35275799,1710.7,1710.2,0.08906003]
[1659277715347,0.35565693,1710.7,1710.2,0.08906003]
[1659277715740,3.25370365,1710.7,1710.2,0.08906003]
[1659277716167,3.25080471,1710.7,1710.2,0.08906003]
[1659277717554,3.25080471,1710.7,1710.2,0.08569891]
[1659277718574,3.25080471,1710.7,1710.1,0.32829349]
[1659277718892,3.25080471,1710.7,1709.9,6.06286003]
[1659277718893,0.2,1710.6,1709.9,6.06286003]
[1659277719091,3.24804672,1710.7,1709.9,12.41090675]
[1659277719297,3.19804672,1710.7,1710.0,3.5]
[1659277720320,3.19804672,1710.7,1709.9,12.69851307]
[1659277720624,3.19804672,1710.7,1709.9,12.64851307]
[1659277720777,3.20089601,1710.7,1709.9,12.64851307]
[1659277720977,3.20089601,1710.7,1709.9,12.94076307]
[1659277721636,0.05275799,1710.6,1709.9,12.94076307]
[1659277722516,0.05275799,1710.6,1710.0,6.18622436]
[1659277723027,0.05275799,1710.6,1710.0,9.68622436]
[1659277723179,0.05275799,1710.6,1710.0,6.18622436]
[1659277723620,0.05275799,1710.6,1710.0,9.68622436]
[1659277723928,0.05275799,1710.6,1710.1,0.0889449]
[1659277725091,0.05275799,1710.6,1710.1,3.88575855]
[1659277725292,0.05275799,1710.6,1710.1,0.38575855]
[1659277725795,0.05275799,1710.6,1710.1,0.67799855]
[1659277726195,0.05275799,1710.6,1710.2,0.2]
[1659277729813,0.05275799,1710.6,1710.1,1.92099855]
[1659277736552,0.05275799,1710.6,1710.2,0.49224]
[1659277736794,11.72811798,1710.8,1710.3,0.29471435]
[1659277737656,11.72811798,1710.8,1710.3,0.29823105]
[1659277738761,11.28931798,1710.8,1710.3,0.29823105]
[1659277740104,11.28931798,1710.8,1710.3,0.38703276]
[1659277740272,11.34207597,1710.8,1710.3,0.38460285]
[1659277746592,11.34207597,1710.8,1710.3,0.67683285]
[1659277748494,11.34207597,1710.8,1710.3,4.37683285]
[1659277748695,11.34207597,1710.8,1710.4,3.5]
[1659277748696,10.98931798,1710.8,1710.4,3.5]
[1659277748893,0.28981798,1710.8,1710.5,0.29471435]
[1659277749121,3.0083,1710.9,1710.5,0.49471435]
[1659277749503,0.00292074,1711.1,1710.8,0.2]
[1659277749729,3.4543382,1711.3,1710.9,0.29471435]
[1659277749730,6.5205382,1711.3,1710.9,0.29471435]
[1659277749986,3.3543382,1711.3,1711.0,1.228]
[1659277750127,11.1636,1711.6,1711.0,1.228]
[1659277750324,2.89804672,1711.5,1711.0,1.52271435]
[1659277750534,0.00292083,1711.4,1711.0,1.52271435]
[1659277751152,2.90096755,1711.4,1711.0,0.29471435]
[1659277751349,5.89804672,1711.3,1710.7,0.05]
[1659277751569,5.89804672,1711.3,1710.5,0.08856647]
[1659277751570,9.32994672,1711.3,1710.5,0.13856647]
[1659277751783,9.62994672,1711.3,1710.6,0.29471435]
[1659277752275,9.62994672,1711.3,1710.6,5.79471435]
[1659277752438,6.7319,1711.3,1710.8,0.2]
[1659277753063,6.4319,1711.3,1710.8,0.49471435]
[1659277754176,6.4319,1711.3,1710.8,0.29471435]
[1659277754378,0.05,1711.5,1711.0,1.243]
[1659277754580,0.05,1711.7,1711.2,1.443]
[1659277754817,0.05,1711.9,1711.6,1.243]
[1659277755035,21.2894,1712.1,1711.6,1.243]
[1659277755036,17.4203,1712.1,1711.6,1.243]
[1659277755201,17.4203,1712.1,1711.6,1.53771435]
[1659277755382,3.2628,1712.1,1711.7,0.2]
[1659277755692,0.05,1712.4,1712.0,5.328]
[1659277755891,0.05,1712.7,1712.1,4.80743721]
[1659277756123,3.3054241,1712.9,1712.1,4.42076107]
[1659277756521,3.3054241,1712.9,1712.1,1.52271435]
[1659277756759,3.25818209,1712.9,1712.1,0.29471435]
[1659277757047,0.0028358,1712.8,1712.1,0.29471435]
[1659277757811,3.25818209,1712.9,1712.1,0.29471435]
[1659277758063,3.69648209,1712.9,1712.1,0.29471435]
[1659277758204,3.69648209,1712.9,1712.1,3.19276107]
[1659277758405,3.69648209,1712.9,1712.4,1.243]
[1659277758406,2.96145799,1712.9,1712.4,1.243]
[1659277758607,2.96145799,1712.9,1712.1,6.69276107]
[1659277758608,0.0028358,1712.8,1712.2,0.05]
[1659277758860,0.17882016,1712.8,1712.0,2.7854]
[1659277759061,0.17882016,1712.8,1712.1,2.89804672]
[1659277759362,2.96145799,1712.9,1712.2,0.2]
[1659277759363,0.05,1712.9,1712.2,0.2]
[1659277759512,0.05,1712.9,1712.1,1.278]
[1659277759513,2.7507,1712.9,1712.1,1.278]
[1659277759706,0.05,1712.9,1712.3,1.243]
[1659277759907,0.7383,1713.0,1712.3,1.243]
[1659277759908,0.7883,1713.0,1712.3,1.243]
[1659277760137,0.3,1713.0,1712.3,1.243]
[1659277760355,0.00325188,1712.8,1712.4,0.39634731]
[1659277761206,0.35,1713.0,1712.4,0.39634731]
[1659277761207,4.3883,1713.0,1712.4,0.39634731]
[1659277761520,3.0,1712.9,1712.4,0.39634731]
[1659277761889,3.9,1713.0,1712.4,0.39634731]
[1659277762202,3.90289681,1713.0,1712.4,0.39634731]
[1659277762970,3.9,1713.0,1712.4,0.39634731]
[1659277763221,0.2,1712.9,1712.2,0.05]
[1659277763383,0.4383,1712.8,1712.1,2.89298487]
[1659277763584,0.91428436,1712.8,1712.1,2.84298487]
[1659277763785,0.2,1712.7,1712.1,5.74103159]
[1659277763987,3.77598436,1712.8,1712.2,3.28414777]
[1659277764191,4.0383,1712.8,1712.1,3.09911434]
[1659277764406,3.6,1712.8,1712.1,3.09911434]
[1659277764591,3.6,1712.8,1712.2,6.18142802]
[1659277764778,3.6,1712.8,1712.3,0.34471434]
[1659277765825,3.60287997,1712.8,1712.3,0.34471434]
[1659277766405,3.6,1712.8,1712.3,0.34471434]
[1659277768441,3.6,1712.8,1712.4,0.08850088]
[1659277770441,3.6,1712.8,1712.5,3.74319199]
[1659277770595,3.6,1712.8,1712.5,4.97119199]
[1659277770793,3.3,1712.8,1712.5,7.86923871]
[1659277771034,3.3,1712.8,1712.5,1.6876191]
[1659277771035,0.3,1712.8,1712.5,1.6876191]
[1659277771255,0.4383,1712.9,1712.4,0.08850088]
[1659277772049,4.34133751,1713.0,1712.5,1.228]
[1659277772255,3.90303751,1713.0,1712.5,1.228]
[1659277772475,3.9,1713.0,1712.6,0.34471434]
[1659277773127,3.3,1713.0,1712.7,0.11490476]
[1659277773327,0.3,1713.0,1712.8,0.34471434]
[1659277773530,0.3,1713.0,1712.9,1.243]
[1659277773954,0.3,1713.0,1712.8,0.34471434]
[1659277774121,0.3,1713.0,1712.5,0.08855248]
[1659277774342,0.3,1713.0,1712.7,0.2]
[1659277774525,0.3,1713.0,1712.9,5.7]
[1659277774870,0.00326741,1713.2,1712.9,8.59804672]
[1659277775022,0.05,1713.5,1713.2,0.2]
[1659277775223,3.2237,1713.7,1713.4,1.243]
[1659277775461,8.3527,1713.9,1713.4,1.243]
[1659277775622,7.9147,1713.9,1713.6,1.228]
[1659277775824,0.44040352,1714.0,1713.6,1.228]
[1659277775825,0.00268879,1713.7,1713.6,1.228]
[1659277776239,0.00268879,1713.7,1713.6,1.428]
[1659277776396,0.00240352,1714.0,1713.7,6.84471434]
[1659277776696,0.00240352,1714.0,1713.9,1.443]
[1659277776877,0.00240352,1714.0,1713.9,1.243]
[1659277777488,0.00240352,1714.0,1713.9,1.58771434]
[1659277777685,0.00240352,1714.0,1713.9,0.34471434]
[1659277778193,0.00240352,1714.0,1713.6,0.08838065]
[1659277778194,0.63440352,1714.0,1713.6,0.08838065]
[1659277778359,0.63440352,1714.0,1713.6,2.98642737]
[1659277778360,0.00240352,1714.0,1713.6,2.98642737]
[1659277778950,0.00240352,1714.0,1713.7,3.44276106]
[1659277779164,0.00240352,1714.0,1713.9,1.428]
[1659277779365,0.00240352,1714.0,1713.9,4.32604672]
[1659277779570,0.05,1714.4,1714.3,3.5]
[1659277779781,0.43875,1714.6,1714.3,1.58771434]
[1659277780224,3.33679672,1714.6,1714.0,0.05]
[1659277780382,0.43875,1714.6,1714.1,0.34471434]
[1659277780586,0.43875,1714.6,1714.1,4.47076106]
[1659277780789,3.33679672,1714.6,1713.9,0.05]
[1659277780986,3.33679672,1714.6,1713.8,3.1562]
[1659277780987,0.4379,1714.5,1713.8,2.7681]
[1659277781249,3.19804672,1714.4,1713.7,2.8273]
[1659277781401,3.19804672,1714.4,1713.6,0.05]
[1659277781402,5.89804672,1714.3,1713.6,0.05]
[1659277781613,3.3,1714.3,1713.5,1.293]
[1659277781806,3.3,1714.3,1713.6,0.39410563]
[1659277782792,3.3,1714.3,1713.5,0.05]
[1659277782793,6.69804672,1714.2,1713.5,0.05]
[1659277783132,1.21102382,1714.0,1713.4,0.05]
[1659277783423,1.21102382,1714.0,1713.2,0.05]
[1659277783424,3.33604672,1713.9,1713.2,0.05]
[1659277783576,3.33604672,1713.9,1712.8,5.8072]
[1659277783577,15.86904672,1713.8,1713.1,0.05]
[1659277783778,15.86904672,1713.8,1713.0,0.05]
[1659277783779,13.20714672,1713.7,1713.0,0.05]
[1659277783981,16.36904672,1713.6,1712.9,0.05]
[1659277784214,12.80714672,1713.5,1712.8,0.05]
[1659277784423,12.80714672,1713.5,1712.7,0.05]
[1659277784424,6.02194672,1713.4,1712.7,0.05]
[1659277784594,14.02174672,1713.3,1712.6,0.05]
[1659277784800,2.89804672,1713.2,1712.6,0.34471434]
[1659277785199,3.19804672,1713.2,1712.6,0.34471434]
[1659277786414,3.3,1713.1,1712.6,0.34471434]
[1659277786795,6.19804672,1713.1,1712.6,0.34471434]
[1659277786996,6.19804672,1713.1,1712.4,0.05]
[1659277786997,6.63624672,1713.1,1712.4,0.05]
[1659277787194,6.63624672,1713.1,1712.3,2.765]
[1659277787398,6.68624672,1713.1,1712.4,0.34471434]
[1659277787638,6.63624672,1713.1,1712.4,0.34471434]
[1659277787842,2.89804672,1713.0,1712.4,0.34471434]
[1659277788027,2.89804672,1713.0,1712.2,0.05]
[1659277788028,3.3,1712.9,1712.2,0.05]
[1659277788245,4.0383,1712.9,1712.2,4.48576106]
[1659277788450,0.05,1713.0,1712.2,4.48576106]
[1659277788665,2.94804672,1713.0,1712.2,4.48576106]
[1659277788877,6.98634672,1713.0,1712.2,4.48576106]
[1659277789243,6.54804672,1713.0,1712.2,4.48576106]
[1659277789641,0.05,1713.0,1712.9,1.428]
[1659277789851,7.6855,1713.3,1712.9,1.77271434]
[1659277790049,3.2644,1713.5,1712.9,1.77271434]
[1659277790277,3.33614672,1713.5,1712.9,1.77271434]
[1659277790481,3.33614672,1713.5,1712.9,0.54471434]
[1659277790958,3.33614672,1713.5,1712.9,0.5941848]
[1659277792295,3.33614672,1713.5,1712.7,0.25]
[1659277792530,3.19804672,1713.4,1712.6,0.05]
[1659277792736,6.33624672,1713.3,1712.5,5.5625]
[1659277792943,3.19804672,1713.2,1712.6,0.39419346]
[1659277793526,0.4382,1713.3,1712.7,2.89804672]
[1659277793750,2.9702,1713.6,1713.1,1.428]
[1659277793906,7.9031,1713.7,1713.1,4.32604672]
[1659277794107,2.8006,1713.9,1713.6,0.2]
[1659277794352,0.05,1713.9,1713.6,0.2]
[1659277794500,2.8214,1714.1,1713.6,0.2]
[1659277795277,3.4214,1714.1,1713.6,0.2]
[1659277796086,3.4214,1714.1,1713.6,1.443]
[1659277796442,0.6,1714.1,1713.6,1.443]
[1659277796646,0.3,1714.1,1713.6,1.443]
[1659277796969,0.738,1714.2,1713.9,0.2]
[1659277796970,1.04106906,1714.2,1713.9,0.2]
[1659277797155,0.44106906,1714.2,1713.9,0.2]
[1659277797486,0.00306906,1714.2,1713.9,0.2]
[1659277797696,0.4379,1714.3,1713.9,0.2]
[1659277798455,7.74616328,1714.4,1714.1,0.2]
[1659277798958,7.7429,1714.4,1714.1,0.2]
[1659277799164,3.31485,1714.6,1714.0,0.34471434]
[1659277799342,2.89804672,1714.5,1714.0,0.34471434]
[1659277799547,3.31811322,1714.6,1714.1,0.2]
[1659277799793,0.44201322,1714.6,1714.2,0.34471434]
[1659277799943,0.44201322,1714.6,1714.2,6.94276106]
[1659277800143,0.44201322,1714.6,1714.5,3.2]
[1659277800376,0.44201322,1714.6,1714.4,0.34471434]
[1659277800586,0.43875,1714.6,1714.4,0.34471434]
[1659277800849,0.43875,1714.6,1714.0,0.25]
[1659277801046,0.43875,1714.6,1714.1,0.34471434]
[1659277801368,0.43875,1714.6,1714.2,6.1772188]
[1659277801570,0.43875,1714.6,1714.2,2.99396171]
[1659277801772,0.43875,1714.6,1714.2,0.09591499]
[1659277802967,0.73875,1714.6,1714.2,0.09591499]
[1659277803179,0.73875,1714.6,1713.9,0.13354984]
[1659277803180,10.54569672,1714.6,1713.9,0.13354984]
[1659277803360,2.89804672,1714.4,1713.9,0.08354984]
[1659277803661,0.3,1714.2,1713.9,0.08354984]
[1659277803862,3.33604672,1714.1,1713.9,0.08354984]
[1659277804294,0.6,1714.1,1713.9,0.08354984]
[1659277804461,0.3,1714.1,1713.9,0.08354984]
[1659277804664,0.6,1714.2,1713.9,0.08354984]
[1659277804894,3.49804672,1714.2,1713.9,0.08354984]
[1659277805404,5.89804672,1714.1,1713.9,0.08354984]
[1659277805603,2.89804672,1714.0,1713.9,0.08354984]
[1659277805809,3.09804672,1714.0,1713.9,0.08354984]
[1659277806468,2.89804672,1714.0,1713.9,0.08354984]
[1659277806881,5.89804672,1714.0,1713.9,0.08354984]
[1659277807445,13.74574672,1714.0,1713.9,0.08354984]
[1659277807893,10.8477,1714.0,1713.9,0.08354984]
[1659277808185,3.1627,1714.3,1713.9,0.08354984]
[1659277808381,2.89804672,1714.2,1713.9,0.08354984]
[1659277809259,9.50704672,1714.2,1714.0,0.22497667]
[1659277809455,2.89804672,1714.1,1714.0,0.22497667]
[1659277809661,6.49804672,1714.1,1714.0,0.22497667]
[1659277810407,6.49804672,1714.1,1714.0,0.19840987]
[1659277811490,6.93604672,1714.1,1714.0,0.19840987]
[1659277811981,7.13604672,1714.1,1714.0,0.19840987]
[1659277812311,13.30704672,1714.1,1714.0,0.00040987]
[1659277812517,0.1301556,1714.0,1713.6,0.05]
[1659277812678,8.5,1713.7,1713.3,0.05]
[1659277812880,3.33614672,1713.6,1713.0,0.05]
[1659277813094,6.49804672,1713.5,1712.8,0.05]
[1659277813273,2.89804672,1713.4,1712.8,0.39422394]
[1659277813473,3.0,1713.3,1712.8,0.39422394]
[1659277813675,3.3,1713.3,1712.8,0.39422394]
[1659277813879,2.89804672,1713.2,1712.8,0.34422394]
[1659277814172,3.6,1713.3,1712.8,0.34422394]
[1659277814421,0.6,1713.3,1712.8,0.34422394]
[1659277814620,0.3,1713.3,1712.8,0.34422394]
[1659277814779,0.5,1713.4,1712.8,0.34422394]
[1659277814978,3.69804672,1713.4,1712.8,0.34422394]
[1659277815215,3.3,1713.3,1712.8,0.34422394]
[1659277817395,3.3495096,1713.3,1712.8,0.34422394]
[1659277817930,3.3495096,1713.3,1712.8,0.34671666]
[1659277818445,6.24755632,1713.3,1712.8,0.34671666]
[1659277818623,3.3,1713.3,1712.8,0.34671666]
[1659277818829,0.3,1713.3,1712.8,0.34671666]
[1659277818997,0.3,1713.4,1712.8,0.34671666]
[1659277819196,3.65,1713.5,1712.8,0.34671666]
[1659277819399,3.6,1713.5,1712.8,0.34671666]
[1659277819598,0.0495096,1713.4,1712.8,0.34671666]
[1659277819840,0.0495096,1713.4,1712.7,8.4226]
[1659277819841,3.19804672,1713.3,1712.7,8.4226]
[1659277820053,5.89804672,1713.2,1712.7,7.9843]
[1659277820202,0.73184564,1714.6,1713.8,0.4]
[1659277820400,0.43875,1714.6,1713.9,9.73561384]
[1659277820645,0.4882596,1714.6,1713.9,0.438]
[1659277820808,0.4882596,1714.6,1714.0,0.00249097]
[1659277820809,0.00272643,1714.2,1714.0,0.00249097]
[1659277821016,0.00272643,1714.2,1714.0,0.34671491]
[1659277821842,0.4882596,1714.6,1714.0,0.34671491]
[1659277822197,0.04337927,1714.5,1714.0,0.34671491]
[1659277822749,0.04337927,1714.5,1714.0,0.54671491]
[1659277823301,0.04337927,1714.5,1714.0,0.34671491]
[1659277824128,0.04337927,1714.5,1714.0,0.39994935]
[1659277825297,0.04337927,1714.5,1714.0,0.05323444]
[1659277825599,0.04337927,1714.5,1714.3,0.2]
[1659277826151,0.04337927,1714.5,1714.1,0.27455511]
[1659277826350,0.04337927,1714.5,1714.1,0.07455511]
[1659277827248,0.04337927,1714.5,1714.3,0.15212316]
[1659277827452,9.41242599,1714.5,1714.3,0.15212316]
[1659277827658,9.41242599,1714.5,1714.1,0.07455511]
[1659277827659,0.056,1714.3,1714.1,0.07455511]
[1659277827855,2.89804672,1714.2,1714.1,0.07455511]
[1659277828084,3.19804672,1714.2,1714.1,0.07455511]
[1659277828306,6.19804672,1714.2,1714.1,0.07455511]
[1659277828585,6.24755632,1714.2,1714.1,0.07455511]
[1659277828794,6.24755632,1714.2,1714.1,0.04919752]
[1659277829349,6.24755632,1714.2,1713.8,0.2]
[1659277829549,3.3,1714.1,1713.8,0.2]
[1659277830295,3.3,1714.1,1713.9,0.2]
[1659277830597,0.6495096,1714.2,1713.9,0.2]
[1659277830767,3.6495096,1714.2,1713.9,0.2]
[1659277831525,3.0495096,1714.2,1713.9,0.2]
[1659277831705,0.0495096,1714.2,1713.9,0.2]
[1659277831868,8.02544297,1714.4,1714.0,0.4096191]
[1659277832052,8.02544297,1714.4,1714.1,0.2]
[1659277832361,8.02544297,1714.4,1714.3,0.4]
[1659277832362,0.00304297,1714.4,1714.3,0.4]
[1659277832699,0.04337927,1714.5,1714.4,7.4]
[1659277832928,0.04337927,1714.5,1714.4,10.73594672]
[1659277833628,0.04337927,1714.5,1714.4,10.33594672]
[1659277834190,0.04337927,1714.5,1714.4,10.07772686]
[1659277834418,0.04337927,1714.5,1714.4,7.17968014]
[1659277834621,0.04337927,1714.5,1714.4,0.17968014]
[1659277835388,0.04337927,1714.5,1714.4,0.22447239]
[1659277836285,0.04337927,1714.5,1714.4,3.12251911]
[1659277836486,0.04337927,1714.5,1714.4,3.56041911]
[1659277836932,0.04337927,1714.5,1714.4,0.22447239]
[1659277837295,0.43875,1714.6,1714.4,0.29387703]
[1659277837495,0.43875,1714.6,1714.5,5.4]
[1659277837719,0.43875,1714.6,1714.5,5.74422394]
[1659277838234,0.43875,1714.6,1714.5,8.64227066]
[1659277838394,0.43875,1714.6,1714.5,3.68017066]
[1659277838592,0.43875,1714.6,1714.4,0.29387703]
[1659277839221,0.4882596,1714.6,1714.4,0.29387703]
[1659277839403,0.43875,1714.6,1714.4,0.31844829]
[1659277839608,0.43875,1714.6,1714.5,11.5151188]
[1659277839834,0.43875,1714.6,1714.5,7.77917208]
[1659277840041,0.43875,1714.6,1714.4,0.66267223]
[1659277840188,0.43875,1714.6,1714.4,3.56071895]
[1659277840407,0.43875,1714.6,1714.5,5.2]
[1659277841141,0.43875,1714.6,1714.5,9.53604672]
[1659277842156,0.05,1715.0,1714.9,0.4]
[1659277842364,1.2716734,1715.1,1715.0,0.2]
[1659277842528,1.2716734,1715.1,1714.6,4.52515]
[1659277842712,0.00268037,1714.9,1714.7,2.89804672]
[1659277843155,0.00268037,1714.9,1714.8,1.238]
[1659277843358,0.00068037,1714.9,1714.8,8.38027066]
[1659277843567,1.2716734,1715.1,1715.0,5.9]
[1659277843743,1.2716734,1715.1,1715.0,8.79804672]
[1659277843913,1.2716734,1715.1,1715.0,8.86344188]
[1659277844251,1.2716734,1715.1,1715.0,9.20766582]
[1659277845613,1.2716734,1715.1,1715.0,9.00766582]
[1659277846413,1.2716734,1715.1,1715.0,8.80766582]
[1659277846614,1.2716734,1715.1,1715.0,9.00766582]
[1659277847049,1.2716734,1715.1,1715.0,9.1139298]
[1659277847326,1.2716734,1715.1,1715.0,9.3139298]
[1659277848192,1.2716734,1715.1,1715.0,9.38324578]
[1659277848967,1.2716734,1715.1,1715.0,3.14280667]
[1659277849161,1.2716734,1715.1,1715.0,0.24475995]
[1659277849669,1.2716734,1715.1,1715.0,4.56780667]
[1659277849869,1.2716734,1715.1,1715.0,1.66975995]
[1659277850067,1.2716734,1715.1,1715.0,1.46975995]
[1659277850269,1.2716734,1715.1,1715.0,5.11203061]
[1659277850676,1.2716734,1715.1,1715.0,4.91203061]
[1659277850875,1.2716734,1715.1,1715.0,3.68703061]
[1659277851093,1.2716734,1715.1,1715.0,3.88703061]
[1659277852515,1.2716734,1715.1,1715.0,3.68703061]